bitfinex/quotes_SOLUSD_20240624
["timestamp","ask_amount","ask_price","bid_price","bid_amount"]
[1719228641175,7.9166,126.32,126.27,100.0]
[1719228641400,7.9189,126.28,126.25,483.10748137]
[1719228641582,7.9201,126.26,126.25,383.10748137]
[1719228641898,19.7948,126.3,126.21,489.15778137]
[1719228642399,7.9193,126.28,126.23,100.0]
[1719228642595,19.7905,126.33,126.25,100.0]
[1719228642812,19.7905,126.33,126.25,483.10748137]
[1719228643100,7.9197,126.27,126.25,383.10748137]
[1719228643300,7.9186,126.29,126.23,483.10748137]
[1719228643481,7.9175,126.31,126.25,100.0]
[1719228643782,7.9177,126.3,126.25,100.0]
[1719228644175,19.7912,126.32,126.23,483.10748137]
[1719228644379,7.9186,126.29,126.25,100.0]
[1719228644997,7.9186,126.29,126.23,483.10748137]
[1719228645393,7.9186,126.29,126.25,100.0]
[1719228645590,1.98148251,126.35,126.25,100.0]
[1719228645797,7.9184,126.29,126.25,483.10748137]
[1719228646004,7.81373488,126.29,126.25,483.10748137]
[1719228646206,7.9178,126.3,126.25,483.10748137]
[1719228646408,7.9172,126.31,126.25,483.10748137]
[1719228646607,3.81792958,126.35,126.27,100.0]
[1719228646807,1.83644707,126.35,126.27,483.10748137]
[1719228647192,7.9157,126.34,126.27,483.10748137]
[1719228647397,1.83644707,126.35,126.27,483.10748137]
[1719228647713,7.9153,126.34,126.29,100.0]
[1719228648013,1.83644707,126.35,126.29,100.0]
[1719228648210,1.83644707,126.35,126.3,1.4484986]
[1719228648721,9.75134707,126.35,126.29,100.0]
[1719228648897,1.83644707,126.35,126.31,100.0]
[1719228649631,7.9125,126.39,126.33,100.0]
[1719228649791,7.9126,126.38,126.33,483.10748137]
[1719228649991,7.9122,126.39,126.33,483.10748137]
[1719228650195,21.75438251,126.44,126.33,491.02308137]
[1719228650405,7.9121,126.39,126.33,483.10748137]
[1719228651309,7.9121,126.39,126.35,100.0]
[1719228651723,19.7789,126.4,126.33,498.63498137]
[1719228651893,33.76148251,126.44,126.33,383.10748137]
[1719228652086,7.9131,126.38,126.33,483.10748137]
[1719228652292,19.7778,126.41,126.33,483.10748137]
[1719228652494,7.9123,126.39,126.33,483.10748137]
[1719228653003,7.9132,126.37,126.33,483.10748137]
[1719228653201,7.9128,126.38,126.33,483.10748137]
[1719228653803,19.7756,126.42,126.35,100.0]
[1719228653804,7.9115,126.4,126.35,100.0]
[1719228654118,21.75368251,126.44,126.35,100.0]
[1719228654296,7.9113,126.4,126.35,100.0]
[1719228654693,19.7722,126.44,126.35,100.0]
[1719228654998,19.7722,126.44,126.35,483.10748137]
[1719228655616,1.98148251,126.43,126.35,383.10748137]
[1719228655815,7.9138,126.36,126.35,383.10748137]
[1719228656396,7.9132,126.38,126.35,383.10748137]
[1719228657514,1.98148251,126.4,126.35,383.10748137]
[1719228657823,1.98148251,126.4,126.29,383.10748137]
[1719228657824,7.9172,126.31,126.29,383.10748137]
[1719228658022,7.9172,126.31,126.27,483.10748137]
[1719228658192,7.9172,126.31,126.27,383.10748137]
[1719228658394,7.9179,126.3,126.27,383.10748137]
[1719228658618,7.9183,126.29,126.27,383.10748137]
[1719228659019,1.98148251,126.36,126.25,383.10748137]
[1719228659228,19.7937,126.31,126.25,383.10748137]
[1719228659531,0.79207921,126.26,126.25,383.10748137]
[1719228664012,7.9133,126.37,126.31,483.10748137]
[1719228664213,7.914,126.36,126.31,383.10748137]
[1719228664446,61.68706525,126.4,126.31,483.10748137]
[1719228664737,51.5585,126.4,126.31,383.10748137]
[1719228664937,7.914,126.36,126.31,383.10748137]
[1719228665145,7.9148,126.35,126.31,383.10748137]
[1719228665433,7.914,126.36,126.31,383.10748137]
[1719228665741,7.9145,126.35,126.31,383.10748137]
[1719228666119,10.12848451,126.39,126.31,483.10748137]
[1719228666331,7.9133,126.37,126.31,483.10748137]
[1719228666724,7.9128,126.38,126.31,483.10748137]
[1719228666921,1.98148251,126.39,126.31,383.10748137]
[1719228667229,19.78,126.39,126.31,383.10748137]
[1719228667536,35.59792958,126.4,126.31,383.10748137]
[1719228667537,7.9128,126.38,126.31,491.02438137]
[1719228667746,33.61644707,126.4,126.31,491.02438137]
[1719228667747,1.83644707,126.4,126.31,483.10748137]
[1719228667913,1.83644707,126.4,126.33,100.0]
[1719228668109,1.83644707,126.4,126.35,100.0]
[1719228668516,1.83644707,126.4,126.36,7.9134]
[1719228668723,1.83644707,126.4,126.35,127.7]
[1719228668935,1.98148251,126.44,126.35,119.7858]
[1719228669114,7.9095,126.43,126.37,100.0]
[1719228669522,7.9101,126.42,126.37,100.0]
[1719228669927,8.14770297,126.48,126.39,100.0]
[1719228670122,7.908,126.46,126.39,100.0]
[1719228670325,1.98148251,126.5,126.41,100.0]
[1719228670541,7.9067,126.48,126.41,483.10748137]
[1719228671232,7.907,126.47,126.41,483.10748137]
[1719228671453,7.9065,126.48,126.43,100.0]
[1719228672542,7.9072,126.47,126.42,106.5703]
[1719228672747,19.7633,126.5,126.42,6.5703]
[1719228672943,19.7663,126.48,126.42,6.5703]
[1719228673245,3.81792958,126.5,126.41,383.10748137]
[1719228673246,7.9099,126.43,126.41,383.10748137]
[1719228673440,7.9099,126.43,126.37,483.10748137]
[1719228673655,19.7655,126.49,126.39,100.0]
[1719228673939,19.7655,126.49,126.39,483.10748137]
[1719228674149,19.7677,126.47,126.39,383.10748137]
[1719228674345,7.911,126.41,126.39,383.10748137]
[1719228674552,1.98148251,126.46,126.37,489.54608137]
[1719228674553,7.9097,126.43,126.37,489.54608137]
[1719228674747,7.9095,126.43,126.37,489.54608137]
[1719228674930,7.9088,126.45,126.39,100.0]
[1719228675254,7.9089,126.44,126.37,489.54608137]
[1719228675737,31.78,126.47,126.39,100.0]
[1719228676053,7.9084,126.45,126.39,483.10748137]
[1719228676342,7.9078,126.46,126.39,483.10748137]
[1719228676643,19.7672,126.48,126.39,383.10748137]
[1719228676644,1.98148251,126.47,126.39,383.10748137]
[1719228676848,6.18638251,126.46,126.36,399.56768137]
[1719228677146,7.9132,126.37,126.36,383.10748137]
[1719228677354,7.9133,126.37,126.32,398.77408137]
[1719228677526,7.9146,126.35,126.31,389.16928137]
[1719228678425,7.9136,126.37,126.31,389.16928137]
[1719228678633,19.7646,126.49,126.41,6.5977]
[1719228678954,1.98148251,126.51,126.41,6.5977]
[1719228679154,8.14393076,126.53,126.43,100.0]
[1719228679447,0.79095152,126.45,126.43,100.0]
[1719228679826,0.79095152,126.45,126.44,52.9088]
[1719228680027,0.79095152,126.45,126.44,45.0]
[1719228680944,7.9052,126.5,126.44,45.0]
[1719228682126,1.98148251,126.54,126.45,100.0]
[1719228682326,7.9042,126.52,126.46,45.0]
[1719228683228,19.7561,126.58,126.49,15.7956]
[1719228683426,44.58593259,126.75,126.57,100.0]
[1719228683427,31.57,126.67,126.57,100.0]
[1719228683649,7.8981,126.62,126.55,106.0742]
[1719228683844,19.7336,126.69,126.55,206.0742]
[1719228684025,7.8952,126.66,126.57,107.9006]
[1719228684232,19.7336,126.69,126.57,100.0]
[1719228684426,19.7336,126.69,126.59,100.0]
[1719228684934,7.8958,126.65,126.59,100.0]
[1719228685450,7.8946,126.67,126.6,100.17]
[1719228685629,7.8939,126.68,126.6,483.27748137]
[1719228685836,51.2987,126.72,126.62,100.0]
[1719228686034,7.8949,126.67,126.6,483.27748137]
[1719228686234,7.894,126.68,126.6,483.27748137]
[1719228686656,1.83644707,126.71,126.64,100.0]
[1719228686838,7.8928,126.7,126.64,483.10748137]
[1719228687046,1.83644707,126.71,126.64,489.67788137]
[1719228687364,7.8931,126.7,126.64,389.67788137]
[1719228687531,7.8928,126.7,126.64,389.67788137]
[1719228687734,1.83644707,126.71,126.64,489.67788137]
[1719228687939,1.83644707,126.71,126.64,497.57368137]
[1719228688137,1.83644707,126.71,126.66,100.0]
[1719228688351,1.83644707,126.71,126.68,100.0]
[1719228689958,31.57,126.74,126.64,389.67788137]
[1719228690174,7.8946,126.67,126.61,100.0]
[1719228690349,7.8934,126.69,126.63,100.0]
[1719228690661,7.8929,126.7,126.63,100.0]
[1719228690863,9.72734707,126.73,126.66,100.0]
[1719228691032,7.8919,126.72,126.66,100.0]
[1719228691232,7.8925,126.71,126.64,100.0]
[1719228691450,7.8939,126.68,126.64,100.0]
[1719228691633,19.7289,126.72,126.61,200.0]
[1719228691833,7.8946,126.67,126.61,200.0]
[1719228692053,19.7289,126.72,126.64,100.0]
[1719228692054,7.8936,126.69,126.64,100.0]
[1719228692437,7.8928,126.7,126.64,100.0]
[1719228692834,7.8933,126.69,126.64,100.0]
[1719228693255,19.7289,126.72,126.62,100.0]
[1719228693256,7.894,126.68,126.62,100.0]
[1719228693457,19.7327,126.7,126.6,100.0]
[1719228693849,7.8953,126.66,126.6,100.0]
[1719228694377,19.7327,126.7,126.6,100.0]
[1719228694581,7.8956,126.66,126.6,100.0]
[1719228694752,7.8958,126.65,126.6,100.0]
[1719228694954,19.7359,126.68,126.6,100.0]
[1719228695147,7.895,126.67,126.6,100.0]
[1719228695352,7.8953,126.66,126.6,100.0]
[1719228695553,7.8945,126.67,126.6,100.0]
[1719228696073,7.8958,126.65,126.6,100.0]
[1719228696462,7.8952,126.66,126.6,100.0]
[1719228696650,9.99660017,126.73,126.6,100.0]
[1719228696852,1.83644707,126.72,126.62,100.0]
[1719228697284,1.83644707,126.72,126.64,100.0]
[1719228697453,7.8933,126.69,126.64,100.0]
[1719228697657,1.83644707,126.72,126.65,0.17]
[1719228697875,1.83644707,126.72,126.64,100.0]
[1719228698169,7.8921,126.71,126.66,100.0]
[1719228698353,7.8921,126.71,126.66,483.10748137]
[1719228698673,7.8926,126.7,126.66,483.10748137]
[1719228698859,39.4497,126.75,126.66,383.10748137]
[1719228699180,7.8945,126.67,126.66,383.10748137]
[1719228699358,7.8941,126.68,126.66,383.10748137]
[1719228699561,0.78951524,126.67,126.66,383.10748137]
[1719228700672,0.78951524,126.67,126.66,483.10748137]
[1719228700876,0.78951524,126.67,126.66,383.10748137]
[1719228701558,0.78951524,126.67,126.66,483.10748137]
[1719228701870,0.78951524,126.67,126.66,383.10748137]
[1719228702583,0.78951524,126.67,126.64,483.10748137]
[1719228703056,0.78951524,126.67,126.64,583.10748137]
[1719228703451,0.78951524,126.67,126.64,483.10748137]
[1719228704260,1.83644707,126.74,126.7,100.0]
[1719228704472,1.83644707,126.74,126.72,100.0]
[1719228704759,7.8866,126.8,126.73,100.0]
[1719228705068,7.8856,126.82,126.76,106.4496]
[1719228705476,7.8847,126.83,126.76,106.4496]
[1719228705810,49.4096,126.88,126.76,114.338]
[1719228705811,7.884,126.84,126.76,114.338]
[1719228706076,7.8835,126.85,126.78,100.0]
[1719228706283,19.6987,126.92,126.8,100.0]
[1719228706493,7.8814,126.89,126.81,7.8857]
[1719228706785,32.387572,126.93,126.82,119.7122]
[1719228706968,7.8795,126.92,126.84,100.0]
[1719228707165,7.8785,126.93,126.86,100.0]
[1719228707388,31.57,126.98,126.85,6.2798]
[1719228707682,19.6994,126.91,126.85,6.2798]
[1719228707888,7.8807,126.9,126.85,6.2798]
[1719228708262,19.6933,126.95,126.85,6.2798]
[1719228708582,59.40893615,126.98,126.85,25.9873]
[1719228708786,7.8801,126.91,126.85,6.2798]
[1719228709485,7.8791,126.92,126.86,100.0]
[1719228709892,19.6917,126.96,126.83,16.4584]
[1719228709893,19.695,126.94,126.83,16.4584]
[1719228710187,19.6986,126.92,126.8,106.1947]
[1719228710889,7.8825,126.87,126.8,106.1947]
[1719228711088,7.8815,126.88,126.8,114.0807]
[1719228711276,7.8809,126.89,126.82,100.0]
[1719228711589,7.8812,126.89,126.82,100.0]
[1719228711975,21.53304707,126.93,126.82,100.0]
[1719228712299,1.83644707,126.93,126.86,100.0]
[1719228712473,7.8791,126.92,126.86,100.0]
[1719228712871,7.8796,126.91,126.86,100.0]
[1719228713074,1.83644707,126.93,126.85,19.7079]
[1719228713373,7.8796,126.91,126.84,207.8837]
[1719228713591,7.8796,126.91,126.86,100.0]
[1719228713869,1.83644707,126.93,126.86,100.0]
[1719228714072,7.8796,126.91,126.86,100.0]
[1719228714289,1.83644707,126.93,126.88,100.0]
[1719228715296,9.71484707,126.93,126.88,100.0]
[1719228715503,7.8795,126.92,126.85,100.0]
[1719228715696,7.8795,126.92,126.87,100.0]
[1719228715881,1.83644707,126.93,126.87,100.0]
[1719228716301,1.83644707,126.93,126.89,100.0]
[1719228717375,1.83644707,126.93,126.89,106.4813]
[1719228717576,7.8767,126.96,126.89,106.4813]
[1719228718089,7.8772,126.95,126.89,106.4813]
[1719228718295,8.93218866,127.0,126.89,106.4813]
[1719228718491,2.62564707,127.0,126.89,106.4813]
[1719228718690,7.8773,126.95,126.89,106.4813]
[1719228719192,7.8778,126.94,126.89,106.4813]
[1719228719393,19.6881,126.98,126.89,100.0]
[1719228719583,0.78808417,126.9,126.89,100.0]
[1719228719919,0.78808417,126.9,126.86,115.9866]
[1719228720601,0.78808417,126.9,126.88,100.0]
[1719228720906,0.78808417,126.9,126.88,200.0]
[1719228721103,0.78808417,126.9,126.88,100.0]
[1719228721287,0.78808417,126.9,126.89,100.0]
[1719228721601,0.78808417,126.9,126.89,107.8808]
[1719228721905,0.78808417,126.9,126.86,15.9866]
[1719228722110,7.8811,126.89,126.85,106.4813]
[1719228722279,0.78808417,126.9,126.85,106.4813]
[1719228722479,0.78808417,126.9,126.85,6.4813]
[1719228722687,7.881,126.89,126.85,6.4813]
[1719228722894,7.881,126.89,126.83,100.0]
[1719228723091,0.78808417,126.9,126.83,100.0]
[1719228723292,7.8811,126.89,126.83,100.0]
[1719228723483,0.78808417,126.9,126.82,115.6145]
[1719228723687,7.883,126.86,126.82,115.6145]
[1719228724017,0.78808417,126.9,126.82,115.6145]
[1719228724184,7.8818,126.88,126.82,115.6145]
[1719228724379,20.48868417,126.9,126.82,115.6145]
[1719228724706,7.8828,126.86,126.82,115.6145]
[1719228725007,7.8821,126.87,126.82,115.6145]
[1719228725214,20.48868417,126.9,126.81,6.5278]
[1719228725380,20.48868417,126.9,126.8,100.0]
[1719228725381,7.8846,126.83,126.8,100.0]
[1719228725889,7.8846,126.83,126.77,505.23638137]
[1719228726207,7.8852,126.82,126.77,505.23638137]
[1719228726409,19.7074,126.86,126.77,505.23638137]
[1719228726589,7.8851,126.83,126.77,505.23638137]
[1719228726912,59.8975,126.89,126.79,100.0]
[1719228727102,7.8841,126.84,126.77,605.23638137]
[1719228727279,7.8834,126.85,126.79,100.0]
[1719228727600,40.1948,126.89,126.79,200.0]
[1719228727601,19.7044,126.88,126.79,200.0]
[1719228727908,7.8834,126.85,126.79,200.0]
[1719228728104,19.7044,126.88,126.79,200.0]
[1719228728105,7.8839,126.84,126.79,200.0]
[1719228728418,0.7892,126.89,126.79,100.0]
[1719228729101,0.7892,126.89,126.77,505.23638137]
[1719228729309,31.57,126.88,126.77,383.10748137]
[1719228729487,7.8876,126.78,126.77,383.10748137]
[1719228729692,7.8882,126.78,126.73,389.20408137]
[1719228729902,19.713,126.82,126.73,489.20408137]
[1719228730109,19.7173,126.8,126.73,383.10748137]
[1719228730286,0.7892,126.83,126.69,6.0966]
[1719228730287,7.8898,126.75,126.69,6.0966]
[1719228730486,7.8902,126.74,126.69,389.20408137]
[1719228730693,19.721,126.77,126.69,389.20408137]
[1719228730901,7.8906,126.74,126.69,389.20408137]
[1719228731114,44.8355,126.8,126.69,389.20408137]
[1719228731303,25.1179,126.8,126.69,389.20408137]
[1719228731612,7.8899,126.75,126.69,389.20408137]
[1719228731813,7.891,126.73,126.69,389.20408137]
[1719228731992,19.7211,126.77,126.69,389.20408137]
[1719228732195,7.8903,126.74,126.69,389.20408137]
[1719228732393,7.8897,126.75,126.69,389.20408137]
[1719228732592,7.8904,126.74,126.69,389.20408137]
[1719228733288,7.8926,126.71,126.69,383.10748137]
[1719228733488,7.8925,126.71,126.69,383.10748137]
[1719228734191,7.8926,126.7,126.69,383.10748137]
[1719228734402,19.7271,126.73,126.69,383.10748137]
[1719228734605,7.8915,126.72,126.69,383.10748137]
[1719228734815,31.57,126.77,126.69,383.10748137]
[1719228735195,19.7242,126.75,126.69,383.10748137]
[1719228735511,7.8887,126.77,126.69,107.8931]
[1719228735693,19.7181,126.79,126.69,100.0]
[1719228735889,31.57,126.81,126.69,100.0]
[1719228736084,7.8908,126.73,126.69,383.10748137]
[1719228736820,7.8915,126.72,126.69,383.10748137]
[1719228736999,7.8926,126.7,126.69,383.10748137]
[1719228737200,7.8938,126.69,126.65,6.2457]
[1719228737591,7.8927,126.7,126.65,6.2457]
[1719228737798,19.7301,126.71,126.65,6.2457]
[1719228738016,31.57,126.74,126.65,106.2457]
[1719228738214,0.7892,126.75,126.65,106.2457]
[1719228738393,7.8904,126.74,126.67,100.0]
[1719228738716,19.7238,126.76,126.67,383.10748137]
[1719228738906,19.7254,126.74,126.67,383.10748137]
[1719228739210,7.8936,126.69,126.67,383.10748137]
[1719228739417,0.78808417,126.68,126.67,383.10748137]
[1719228740812,8.68198417,126.68,126.67,383.10748137]
[1719228741019,0.78808417,126.68,126.62,383.10748137]
[1719228741198,0.78808417,126.68,126.61,106.4357]
[1719228741199,0.78808417,126.68,126.61,389.54318137]
[1719228741599,7.8948,126.67,126.61,489.54318137]
[1719228741805,0.78808417,126.68,126.61,389.54318137]
[1719228741806,7.8951,126.66,126.61,389.54318137]
[1719228742013,7.8947,126.67,126.61,389.54318137]
[1719228742192,7.8951,126.66,126.61,389.54318137]
[1719228742715,0.78808417,126.68,126.61,489.54318137]
[1719228743225,7.8956,126.66,126.61,489.54318137]
[1719228744018,0.78808417,126.68,126.61,383.10748137]
[1719228744019,7.8972,126.63,126.61,383.10748137]
[1719228744321,19.7368,126.67,126.57,106.2833]
[1719228744322,7.8966,126.64,126.57,489.39078137]
[1719228744622,7.8966,126.64,126.59,100.0]
[1719228745120,0.78808417,126.68,126.61,100.0]
[1719228745713,7.8951,126.66,126.61,100.0]
[1719228746532,0.78808417,126.68,126.61,100.0]
[1719228746707,7.8949,126.67,126.61,100.0]
[1719228747026,8.68248417,126.68,126.64,100.0]
[1719228747228,0.78808417,126.68,126.64,100.0]
[1719228747822,0.78808417,126.68,126.62,119.7426]
[1719228747823,0.78808417,126.68,126.62,200.0]
[1719228748025,0.78808417,126.68,126.64,100.0]
[1719228748801,0.78808417,126.68,126.66,100.0]
[1719228749007,0.78808417,126.68,126.65,6.6357]
[1719228749405,0.78808417,126.68,126.66,100.0]
[1719228749804,0.78808417,126.68,126.65,6.6357]
[1719228750004,0.78808417,126.68,126.66,100.0]
[1719228750205,0.78808417,126.68,126.66,583.10748137]
[1719228750932,21.55384707,126.8,126.71,100.0]
[1719228751119,7.8913,126.79,126.71,483.10748137]
[1719228751314,7.8905,126.74,126.71,383.10748137]
[1719228752009,19.7224,126.76,126.71,383.10748137]
[1719228752211,7.8914,126.72,126.71,383.10748137]
[1719228753409,19.7223,126.76,126.71,383.10748137]
[1719228754136,7.8903,126.74,126.71,383.10748137]
[1719228754313,7.8914,126.72,126.71,383.10748137]
[1719228755040,27.6199,126.72,126.71,383.10748137]
[1719228756226,7.8934,126.69,126.64,498.73778137]
[1719228756638,32.2992,126.74,126.64,498.73778137]
[1719228756836,0.7892,126.74,126.64,498.73778137]
[1719228757042,7.8931,126.7,126.64,498.73778137]
[1719228757415,7.8935,126.69,126.64,498.73778137]
[1719228757820,7.8939,126.68,126.64,498.73778137]
[1719228758047,7.8939,126.68,126.64,383.10748137]
[1719228758221,7.8951,126.66,126.64,383.10748137]
[1719228758732,19.7299,126.72,126.64,383.10748137]
[1719228758941,7.8935,126.69,126.64,383.10748137]
[1719228759444,7.895,126.67,126.64,383.10748137]
[1719228759643,0.78963993,126.65,126.64,383.10748137]
[1719228762947,0.78963993,126.65,126.64,483.10748137]
[1719228763259,0.78963993,126.65,126.64,583.10748137]
[1719228763621,0.78963993,126.65,126.64,583.27748137]
[1719228763818,7.8916,126.72,126.67,100.0]
[1719228764028,35.2199,126.75,126.67,100.0]
[1719228764029,7.892,126.71,126.67,100.0]
[1719228764455,7.8912,126.73,126.67,100.0]
[1719228764638,19.7239,126.75,126.67,100.0]
[1719228764831,7.8923,126.71,126.67,383.10748137]
[1719228765342,7.8923,126.71,126.67,483.10748137]
[1719228765546,7.8917,126.72,126.67,483.10748137]
[1719228766243,7.8922,126.71,126.67,383.10748137]
[1719228766644,7.8916,126.72,126.67,483.10748137]
[1719228766945,6.36436655,126.76,126.67,383.10748137]
[1719228767141,7.8939,126.68,126.67,383.10748137]
[1719228767469,0.7892,126.77,126.63,583.10748137]
[1719228767626,7.8935,126.69,126.63,583.10748137]
[1719228768748,19.7241,126.75,126.65,100.0]
[1719228768951,19.7241,126.75,126.67,100.0]
[1719228769153,7.8922,126.71,126.67,100.0]
[1719228769336,7.8916,126.72,126.67,100.0]
[1719228769527,7.892,126.71,126.67,100.0]
[1719228770941,7.8915,126.72,126.67,100.0]
[1719228771146,26.92182304,126.77,126.67,215.7696]
[1719228771339,7.20012304,126.77,126.67,215.7696]
[1719228771536,7.8909,126.73,126.67,215.7696]
[1719228771845,7.8915,126.72,126.67,215.7696]
[1719228772042,7.20012304,126.77,126.67,215.7696]
[1719228772761,7.892,126.71,126.67,215.7696]
[1719228773136,7.892,126.71,126.67,115.7696]
[1719228773454,19.7251,126.75,126.69,100.0]
[1719228774138,19.7251,126.75,126.69,483.10748137]
[1719228774139,7.8911,126.73,126.69,483.10748137]
[1719228774541,7.8895,126.75,126.69,483.10748137]
[1719228774740,7.20012304,126.77,126.69,483.10748137]
[1719228774948,7.8917,126.72,126.69,483.10748137]
[1719228775351,7.8917,126.72,126.69,383.10748137]
[1719228775847,19.7236,126.76,126.69,383.10748137]
[1719228776143,7.8926,126.7,126.69,383.10748137]
[1719228777551,39.4452,126.76,126.63,483.10748137]
[1719228777552,7.8948,126.67,126.63,483.10748137]
[1719228778059,31.47,126.75,126.63,483.10748137]
[1719228778060,7.8953,126.66,126.63,483.10748137]
[1719228778466,7.8948,126.67,126.63,483.10748137]
[1719228778662,7.8948,126.67,126.63,383.10748137]
[1719228779159,7.8941,126.68,126.63,483.10748137]
[1719228779560,0.78970229,126.64,126.63,383.10748137]
[1719228780166,0.78970229,126.64,126.63,483.10748137]
[1719228782064,0.78970229,126.64,126.63,383.10748137]
[1719228782362,0.78970229,126.64,126.63,483.10748137]
[1719228782564,0.78970229,126.64,126.63,383.10748137]
[1719228782769,8.68600229,126.64,126.63,383.10748137]
[1719228782942,20.53100229,126.64,126.57,505.07368137]
[1719228783260,7.8986,126.61,126.57,505.07368137]
[1719228784176,7.8991,126.6,126.57,389.60818137]
[1719228784467,7.8997,126.59,126.57,383.10748137]
[1719228784646,19.7441,126.62,126.57,383.10748137]
[1719228784647,7.9001,126.58,126.57,383.10748137]
[1719228784847,7.9008,126.57,126.53,383.10748137]
[1719228785575,7.9009,126.57,126.53,383.10748137]
[1719228786070,19.7475,126.6,126.53,383.10748137]
[1719228786271,7.9015,126.56,126.53,383.10748137]
[1719228786650,7.9009,126.57,126.53,383.10748137]
[1719228786862,0.7892,126.61,126.53,383.10748137]
[1719228787161,7.9014,126.56,126.53,383.10748137]
[1719228787364,7.9022,126.55,126.53,383.10748137]
[1719228787581,7.9026,126.54,126.53,383.10748137]
[1719228787949,7.9054,126.5,126.48,383.10748137]
[1719228788149,7.906,126.49,126.46,389.33458137]
[1719228788561,7.9053,126.5,126.46,389.33458137]
[1719228789068,7.905,126.51,126.46,389.33458137]
[1719228789255,19.7591,126.53,126.46,383.10748137]
[1719228789674,7.9059,126.49,126.46,383.10748137]
[1719228790254,19.7551,126.55,126.46,383.10748137]
[1719228790451,7.9044,126.52,126.46,383.10748137]
[1719228791065,0.7892,126.57,126.5,100.0]
[1719228791275,7.9002,126.58,126.5,489.48118137]
[1719228791482,7.9009,126.57,126.52,100.0]
[1719228791661,20.5359,126.61,126.52,100.0]
[1719228791856,7.9018,126.56,126.52,100.0]
[1719228792055,20.5359,126.61,126.5,505.13498137]
[1719228792267,7.1190981,126.61,126.5,505.13498137]
[1719228792455,7.9018,126.56,126.5,505.13498137]
[1719228792663,19.7474,126.6,126.5,505.13498137]
[1719228792664,7.902,126.55,126.5,505.13498137]
[1719228793356,19.7504,126.58,126.5,405.13498137]
[1719228793558,7.9027,126.54,126.5,389.48118137]
[1719228793773,39.5,126.59,126.5,389.48118137]
[1719228794077,19.7519,126.57,126.5,6.3737]
[1719228794258,7.9039,126.52,126.48,483.10748137]
[1719228794575,19.7519,126.57,126.48,483.10748137]
[1719228794873,7.9015,126.56,126.5,200.0]
[1719228795083,7.9009,126.57,126.5,200.0]
[1719228795462,7.9031,126.54,126.5,100.0]
[1719228795679,19.7504,126.58,126.48,483.10748137]
[1719228795867,19.7535,126.56,126.48,483.10748137]
[1719228796362,7.904,126.52,126.48,483.10748137]
[1719228796679,19.7535,126.56,126.48,483.10748137]
[1719228796850,7.9027,126.54,126.48,483.10748137]
[1719228797054,7.9022,126.55,126.5,100.0]
[1719228797254,7.9016,126.56,126.5,100.0]
[1719228797976,7.9021,126.55,126.5,483.10748137]
[1719228798179,31.47,126.6,126.5,383.10748137]
[1719228798475,7.9045,126.51,126.5,383.10748137]
[1719228798692,7.9051,126.5,126.47,389.72618137]
[1719228798982,7.9058,126.49,126.47,389.72618137]
[1719228799171,7.9054,126.5,126.47,389.72618137]
[1719228799356,19.7583,126.53,126.47,389.72618137]
[1719228799679,0.78970229,126.48,126.47,389.72618137]
[1719228800189,0.78970229,126.48,126.47,489.72618137]
[1719228802082,16.1706,126.6,126.48,100.0]
[1719228802291,7.9032,126.54,126.48,483.10748137]
[1719228802508,7.9034,126.53,126.48,483.10748137]
[1719228802667,7.904,126.52,126.48,383.10748137]
[1719228802858,7.9045,126.51,126.48,383.10748137]
[1719228803361,19.7568,126.54,126.48,383.10748137]
[1719228803566,7.9057,126.49,126.48,383.10748137]
[1719228803982,7.9054,126.5,126.48,383.10748137]
[1719228804179,7.9031,126.54,126.48,483.10748137]
[1719228804573,7.9031,126.54,126.48,583.10748137]
[1719228804884,7.903,126.54,126.5,100.0]
[1719228805174,7.903,126.54,126.48,583.10748137]
[1719228805378,19.7534,126.57,126.48,483.10748137]